fUSD/lending_fUSD_20251112
["ID","MTS","AMOUNT","RATE_DAILY","PERIOD"]
[393738100,1762957851351,-500.0,0.00039178,20]
[393738101,1762957851361,-500.0,0.00039178,20]
[393738102,1762957851371,-531.52717222,0.00039178,20]
[393738103,1762957851382,-500.0,0.00039178,20]
[393738104,1762957851393,-500.0,0.00039178,20]
[393738105,1762957851405,-500.0,0.00039178,20]
[393738106,1762957851415,-500.0,0.00039178,20]
[393738107,1762957851425,-500.0,0.00039178,20]
[393738108,1762957851435,-500.0,0.00039178,20]
[393738109,1762957851445,-558.02,0.00039178,20]
[393738110,1762957851455,-500.0,0.00039178,20]
[393738111,1762957851465,-519.43417065,0.00039178,20]
[393738112,1762957851475,-614.11399416,0.00039178,20]
[393738113,1762957851485,-500.0,0.00039178,20]
[393738114,1762957851495,-500.0,0.00039178,20]
[393738115,1762957851505,-500.0,0.00039178,20]
[393738116,1762957851516,-500.0,0.00039178,20]
[393738117,1762957851527,-500.0,0.00039178,20]
[393738118,1762957851538,-500.0,0.00039178,20]
[393738119,1762957851547,-500.0,0.00039178,20]
[393738120,1762957851557,-500.0,0.00039178,20]
[393738121,1762957851571,-500.0,0.00039178,20]
[393738122,1762957851580,-500.0,0.00039178,20]
[393738123,1762957851590,-500.0,0.00039178,20]
[393738124,1762957851600,-615.61746751,0.00039178,20]
[393738125,1762957851610,-500.0,0.00039178,20]
[393738126,1762957851620,-500.0,0.00039178,20]
[393738127,1762957851630,-500.0,0.00039178,20]
[393738128,1762957851640,-500.0,0.00039178,20]
[393738129,1762957851650,-500.0,0.00039178,20]
[393738130,1762957851661,-500.0,0.00039178,20]
[393738131,1762957851671,-500.0,0.00039178,20]
[393738132,1762957851681,-500.0,0.00039178,20]
[393738133,1762957851691,-500.0,0.00039178,20]
[393738134,1762957851701,-500.0,0.00039178,20]
[393738135,1762957851711,-252.65622029,0.00039178,20]
[393738136,1762957851721,-194.72,0.00039178,20]
[393738137,1762957851731,-174.94496369,0.00039178,20]
[393738138,1762957851746,-500.0,0.00039178,20]
[393738139,1762957851757,-229.65081027,0.00039178,20]
[393738140,1762957851767,-500.0,0.00039178,20]
[393738141,1762957851778,-500.0,0.00039178,20]
[393738142,1762957851788,-500.0,0.00039178,20]
[393738143,1762957851799,-500.0,0.00039178,20]
[393738144,1762957851810,-442.90644804,0.00039178,20]
[393738145,1762957851831,-566.90409474,0.00039178,20]
[393738146,1762957851841,-500.0,0.00039178,20]
[393738147,1762957851850,-500.0,0.00039178,20]
[393738148,1762957851860,-500.0,0.00039178,20]
[393738149,1762957851869,-500.0,0.00039178,20]
[393738150,1762957851879,-500.0,0.00039178,20]
[393738151,1762957851888,-500.0,0.00039178,20]
[393738152,1762957851899,-500.0,0.00039178,20]
[393738153,1762957851909,-501.71147644,0.00039178,20]
[393738154,1762957851919,-166.60280515,0.00039178,20]
[393738155,1762957851930,-522.98928177,0.00039178,20]
[393738156,1762957851940,-513.14166224,0.00039178,20]
[393738157,1762957851949,-345.72516998,0.00039178,20]
[393738158,1762957851959,-507.36679975,0.00039178,20]
[393738159,1762957851969,-533.0851926,0.00039178,20]
[393738160,1762957851978,-537.22325752,0.00039178,20]
[393738161,1762957851988,-500.0,0.00039178,20]
[393738162,1762957851998,-625.92,0.00039178,20]
[393738163,1762957852008,-590.26595731,0.00039178,20]
[393738164,1762957852018,-524.96710206,0.00039178,20]
[393738165,1762957852028,-500.0,0.00039178,20]
[393738166,1762957852037,-500.0,0.00039178,20]
[393738167,1762957852047,-500.0,0.00039178,20]
[393738168,1762957852057,-500.0,0.00039178,20]
[393738169,1762957852069,-500.0,0.00039178,20]
[393738170,1762957852079,-500.0,0.00039178,20]
[393738171,1762957852089,-500.0,0.00039178,20]
[393738172,1762957852099,-500.0,0.00039178,20]
[393738173,1762957852108,-526.5973443,0.00039178,20]
[393738174,1762957852118,-500.0,0.00039178,20]
[393738175,1762957852128,-500.0,0.00039178,20]
[393738176,1762957852137,-500.0,0.00039178,20]
[393738177,1762957852147,-500.0,0.00039178,20]
[393738178,1762957852156,-500.0,0.00039178,20]
[393738179,1762957852166,-500.0,0.00039178,20]
[393738180,1762957852176,-500.0,0.00039178,20]
[393738181,1762957852186,-500.0,0.00039178,20]
[393738182,1762957852195,-500.0,0.00039178,20]
[393738183,1762957852205,-500.0,0.00039178,20]
[393738184,1762957852218,-162.95489172,0.00039178,20]
[393738185,1762957852227,-500.0,0.00039178,20]
[393738186,1762957852237,-500.0,0.00039178,20]
[393738187,1762957852246,-474.19250225,0.00039178,20]
[393738188,1762957852258,-500.0,0.00039178,20]
[393738189,1762957852268,-500.0,0.00039178,20]
[393738190,1762957852278,-500.0,0.00039178,20]
[393738191,1762957852289,-500.0,0.00039178,20]
[393738192,1762957852299,-500.0,0.00039178,20]
[393738193,1762957852309,-500.0,0.00039178,20]
[393738194,1762957852319,-500.0,0.00039178,20]
[393738195,1762957852329,-611.51173224,0.00039178,20]
[393738196,1762957852339,-500.0,0.00039178,2]
[393738197,1762957852348,-500.0,0.00039178,20]
[393738198,1762957852358,-500.0,0.00039178,20]
[393738199,1762957852368,-500.0,0.00039178,20]
[393738200,1762957852378,-512.59580184,0.00039178,20]
[393738201,1762957852387,-514.06513942,0.00039178,20]
[393738202,1762957852397,-403.98315499,0.00039178,20]
[393738203,1762957852406,-500.0,0.00039178,20]
[393738204,1762957852416,-500.0,0.00039178,20]
[393738205,1762957852425,-500.0,0.00039178,20]
[393738206,1762957852435,-500.0,0.00039178,20]
[393738207,1762957852446,-551.44,0.00039178,20]
[393738208,1762957852456,-512.3821687,0.00039178,20]
[393738209,1762957852466,-500.0,0.00039178,20]
[393738210,1762957852475,-500.0,0.00039178,20]
[393738211,1762957852485,-500.0,0.00039178,20]
[393738212,1762957852494,-500.0,0.00039178,20]
[393738213,1762957852504,-500.0,0.00039178,20]
[393738214,1762957852514,-500.0,0.00039178,20]
[393738215,1762957852530,-500.0,0.00039178,20]
[393738216,1762957852540,-500.0,0.00039178,20]
[393738217,1762957852550,-500.0,0.00039178,20]
[393738218,1762957852560,-500.0,0.00039178,20]
[393738219,1762957852572,-500.0,0.00039178,20]
[393738220,1762957852581,-529.48668816,0.00039178,20]
[393738221,1762957852591,-500.0,0.00039178,20]
[393738222,1762957852601,-239.71,0.00039178,20]
[393738223,1762957852611,-500.0,0.00039178,20]
[393738224,1762957852620,-500.0,0.00039178,20]
[393738225,1762957852630,-500.0,0.00039178,20]
[393738226,1762957852639,-500.0,0.00039178,20]
[393738227,1762957852649,-500.0,0.00039178,20]
[393738228,1762957852659,-500.0,0.00039178,20]
[393738229,1762957852669,-500.0,0.00039178,20]
[393738230,1762957852679,-500.0,0.00039178,20]
[393738231,1762957852690,-500.0,0.00039178,20]
[393738232,1762957852704,-500.0,0.00039178,20]
[393738233,1762957852714,-500.0,0.00039178,20]
[393738234,1762957852724,-500.0,0.00039178,20]
[393738235,1762957852733,-500.0,0.00039178,20]
[393738236,1762957852743,-500.0,0.00039178,20]
[393738237,1762957852753,-500.0,0.00039178,20]
[393738238,1762957852763,-500.0,0.00039178,20]
[393738239,1762957852772,-500.0,0.00039178,20]
[393738240,1762957852782,-500.0,0.00039178,20]
[393738241,1762957852792,-500.0,0.00039178,20]
[393738242,1762957852801,-500.0,0.00039178,20]
[393738243,1762957852811,-489.19621351,0.00039178,20]
[393738244,1762957852823,-219.50110809,0.00039178,20]
[393738245,1762957852832,-492.38148618,0.00039178,20]
[393738246,1762957852842,-500.0,0.00039178,20]
[393738247,1762957852851,-500.0,0.00039178,20]
[393738248,1762957852861,-500.0,0.00039178,20]
[393738249,1762957852872,-500.0,0.00039178,20]
[393738250,1762957852882,-500.0,0.00039178,20]
[393738251,1762957852890,-500.0,0.00039178,20]
[393738252,1762957852899,-500.0,0.00039178,20]
[393738253,1762957852909,-500.0,0.00039178,20]
[393738254,1762957852917,-500.0,0.00039178,20]
[393738255,1762957852926,-500.0,0.00039178,20]
[393738256,1762957852935,-500.0,0.00039178,20]
[393738257,1762957852944,-500.0,0.00039178,20]
[393738258,1762957852954,-349.00865161,0.00039178,20]
[393738259,1762957852964,-500.0,0.00039178,20]
[393738260,1762957852974,-500.0,0.00039178,20]
[393738261,1762957852984,-500.0,0.00039178,20]
[393738262,1762957852993,-500.0,0.00039178,20]
[393738263,1762957853003,-330.19,0.00039178,20]
[393738264,1762957853013,-500.0,0.00039178,20]
[393738265,1762957853023,-500.0,0.00039178,20]
[393738266,1762957853033,-500.0,0.00039178,20]
[393738267,1762957853047,-500.0,0.00039178,20]
[393738268,1762957853057,-500.0,0.00039178,20]
[393738269,1762957853069,-500.0,0.00039178,20]
[393738270,1762957853080,-500.0,0.00039178,20]
[393738271,1762957853092,-513.77945621,0.00039178,20]
[393738272,1762957853104,-500.0,0.00039178,20]
[393738273,1762957853116,-500.0,0.00039178,20]
[393738274,1762957853128,-500.0,0.00039178,20]
[393738275,1762957853138,-500.0,0.00039178,20]
[393738276,1762957853149,-500.0,0.00039178,20]
[393738277,1762957853160,-500.0,0.00039178,20]
[393738278,1762957853171,-500.0,0.00039178,20]
[393738279,1762957853181,-500.0,0.00039178,20]
[393738280,1762957853192,-183.70042444,0.00039178,20]
[393738281,1762957853203,-500.0,0.00039178,20]
[393738282,1762957853215,-500.0,0.00039178,20]
[393738283,1762957853226,-500.0,0.00039178,20]
[393738284,1762957853236,-500.0,0.00039178,20]
[393738285,1762957853246,-500.0,0.00039178,20]
[393738286,1762957853257,-500.0,0.00039178,20]
[393738287,1762957853267,-500.0,0.00039178,20]
[393738288,1762957853277,-500.0,0.00039178,20]
[393738289,1762957853287,-500.0,0.00039178,20]
[393738290,1762957853299,-500.0,0.00039178,20]
[393738291,1762957853310,-500.0,0.00039178,20]
[393738292,1762957853321,-209.11644816,0.00039178,20]
[393738293,1762957853331,-500.0,0.00039178,20]
[393738294,1762957853342,-500.0,0.00039178,20]
[393738295,1762957853352,-500.0,0.00039178,20]
[393738296,1762957853362,-500.0,0.00039178,20]
[393738297,1762957853372,-500.0,0.00039178,20]
[393738298,1762957853383,-500.0,0.00039178,20]
[393738299,1762957853393,-500.0,0.00039178,20]
[393738300,1762957853402,-306.21826757,0.00039178,20]
[393738301,1762957853412,-390.0,0.00039178,20]
[393738302,1762957853422,-570.32347487,0.00039178,20]
[393738303,1762957853432,-500.0,0.00039178,20]
[393738304,1762957853442,-500.0,0.00039178,20]
[393738305,1762957853452,-500.0,0.00039178,20]
[393738306,1762957853461,-500.0,0.00039178,20]
[393738307,1762957853471,-500.0,0.00039178,20]
[393738308,1762957853481,-500.0,0.00039178,20]
[393738309,1762957853491,-500.0,0.00039178,20]
[393738310,1762957853500,-500.0,0.00039178,20]
[393738311,1762957853508,-500.0,0.00039178,20]
[393738312,1762957853518,-500.0,0.00039178,20]
[393738313,1762957853528,-611.94627296,0.00039178,20]
[393738314,1762957853538,-500.0,0.00039178,20]
[393738315,1762957853548,-500.0,0.00039178,20]
[393738316,1762957853558,-212.67663224,0.00039178,20]
[393738317,1762957853568,-500.0,0.00039178,20]
[393738318,1762957853579,-500.0,0.00039178,20]
[393738319,1762957853588,-500.0,0.00039178,20]
[393738320,1762957853598,-500.0,0.00039178,20]
[393738321,1762957853608,-500.0,0.00039178,20]
[393738322,1762957853618,-500.0,0.00039178,20]
[393738323,1762957853628,-187.94755961,0.00039178,20]
[393738324,1762957853639,-500.0,0.00039178,20]
[393738325,1762957853649,-500.0,0.00039178,20]
[393738326,1762957853658,-500.0,0.00039178,20]
[393738327,1762957853666,-500.0,0.00039178,20]
[393738328,1762957853675,-500.0,0.00039178,20]
[393738329,1762957853685,-500.0,0.00039178,20]
[393738330,1762957853695,-549.2216202,0.00039178,20]
[393738331,1762957853705,-500.0,0.00039178,20]
[393738332,1762957853714,-500.0,0.00039178,20]
[393738333,1762957853724,-500.0,0.00039178,20]
[393738334,1762957853734,-500.0,0.00039178,20]
[393738335,1762957853744,-500.0,0.00039178,20]
[393738336,1762957853754,-500.0,0.00039178,20]
[393738337,1762957853763,-500.0,0.00039178,20]
[393738338,1762957853773,-500.0,0.00039178,20]
[393738339,1762957853782,-500.0,0.00039178,20]
[393738340,1762957853792,-500.0,0.00039178,20]
[393738341,1762957853801,-500.0,0.00039178,20]
[393738342,1762957853811,-500.0,0.00039178,20]
[393738343,1762957853822,-500.0,0.00039178,20]
[393738344,1762957853832,-500.0,0.00039178,20]
[393738345,1762957853842,-500.0,0.00039178,20]
[393738346,1762957853852,-500.0,0.00039178,20]
[393738347,1762957853862,-500.0,0.00039178,20]
[393738348,1762957853872,-500.0,0.00039178,20]
[393738349,1762957853881,-500.0,0.00039178,20]
[393738350,1762957853891,-500.0,0.00039178,20]
[393738351,1762957853901,-500.0,0.00039178,20]
[393738352,1762957853911,-172.73946615,0.00039178,20]
[393738353,1762957853921,-500.0,0.00039178,20]
[393738354,1762957853931,-500.0,0.00039178,20]
[393738355,1762957853942,-460.0,0.00039178,20]
[393738356,1762957853952,-576.03511208,0.00039178,20]
[393738357,1762957853963,-152.35057545,0.00039178,20]
[393738358,1762957853973,-500.0,0.00039178,20]
[393738359,1762957853983,-500.0,0.00039178,20]
[393738360,1762957853992,-500.0,0.00039178,20]
[393738361,1762957854002,-500.0,0.00039178,20]
[393738362,1762957854012,-500.0,0.00039178,20]
[393738363,1762957854022,-500.0,0.00039178,20]
[393738364,1762957854032,-500.0,0.00039178,20]
[393738365,1762957854042,-500.0,0.00039178,20]
[393738366,1762957854052,-500.0,0.00039178,20]
[393738367,1762957854062,-500.0,0.00039178,20]
[393738368,1762957854073,-500.0,0.00039178,20]
[393738369,1762957854083,-500.0,0.00039178,20]
[393738370,1762957854093,-500.0,0.00039178,20]
[393738371,1762957854103,-500.0,0.00039178,20]
[393738372,1762957854113,-500.0,0.00039178,20]
[393738373,1762957854123,-500.0,0.00039178,20]
[393738374,1762957854132,-500.0,0.00039178,20]
[393738375,1762957854142,-500.0,0.00039178,20]
[393738376,1762957854152,-500.0,0.00039178,20]
[393738377,1762957854162,-500.0,0.00039178,20]
[393738378,1762957854172,-500.0,0.00039178,20]
[393738379,1762957854182,-500.0,0.00039178,20]
[393738380,1762957854191,-500.0,0.00039178,20]
[393738381,1762957854201,-500.0,0.00039178,20]
[393738382,1762957854212,-500.0,0.00039178,20]
[393738383,1762957854223,-500.0,0.00039178,20]
[393738384,1762957854233,-500.0,0.00039178,20]
[393738385,1762957854243,-500.0,0.00039178,20]
[393738386,1762957854254,-500.0,0.00039178,20]
[393738387,1762957854265,-500.0,0.00039178,20]
[393738388,1762957854275,-500.0,0.00039178,20]
[393738389,1762957854285,-500.0,0.00039178,20]
[393738390,1762957854299,-500.0,0.00039178,20]
[393738391,1762957854308,-360.50895801,0.00039178,20]
[393738392,1762957854319,-559.5427248,0.00039178,20]
[393738393,1762957854331,-238.85971584,0.00039178,20]
[393738394,1762957854341,-500.0,0.00039178,20]
[393738395,1762957854351,-500.0,0.00039178,7]
[393738396,1762957854362,-155.54364503,0.00039178,7]
[393738397,1762957854372,-500.0,0.00039178,20]
[393738398,1762957854382,-586.94722497,0.00039178,20]
[393738399,1762957854392,-500.0,0.00039178,20]
[393738400,1762957854402,-500.0,0.00039178,20]
[393738401,1762957854411,-500.0,0.00039178,20]
[393738402,1762957854421,-500.0,0.00039178,20]
[393738403,1762957854431,-500.0,0.00039178,20]
[393738404,1762957854440,-500.0,0.00039178,20]
[393738405,1762957854450,-500.0,0.00039178,20]
[393738406,1762957854460,-486.94781261,0.00039178,20]
[393738407,1762957854469,-500.0,0.00039178,20]
[393738408,1762957854479,-340.90715531,0.00039178,20]
[393738409,1762957854490,-500.0,0.00039178,2]
[393738410,1762957854501,-500.0,0.00039178,2]
[393738411,1762957854511,-500.0,0.00039178,2]
[393738412,1762957854521,-500.0,0.00039178,20]
[393738413,1762957854531,-500.0,0.00039178,20]
[393738414,1762957854541,-500.0,0.00039178,2]
[393738415,1762957854551,-500.0,0.00039178,20]
[393738416,1762957854561,-500.0,0.00039178,2]
[393738417,1762957854571,-500.0,0.00039178,20]
[393738418,1762957854581,-500.0,0.00039178,2]
[393738419,1762957854591,-500.0,0.00039178,2]
[393738420,1762957854601,-500.0,0.00039178,20]
[393738421,1762957854768,-500.0,0.00039178,2]
[393738422,1762957854778,-500.0,0.00039178,20]
[393738423,1762957854788,-500.0,0.00039178,2]
[393738424,1762957854798,-500.0,0.00039178,20]
[393738425,1762957854808,-500.0,0.00039178,20]
[393738426,1762957854817,-500.0,0.00039178,20]
[393738427,1762957854828,-500.0,0.00039178,20]
[393738428,1762957854838,-500.0,0.00039178,20]
[393738429,1762957854847,-500.0,0.00039178,20]
[393738430,1762957854856,-500.0,0.00039178,20]
[393738431,1762957854866,-500.0,0.00039178,20]
[393738432,1762957854875,-500.0,0.00039178,20]
[393738433,1762957854884,-500.0,0.00039178,20]
[393738434,1762957854893,-500.0,0.00039178,20]
[393738435,1762957854903,-500.0,0.00039178,20]
[393738436,1762957854913,-500.0,0.00039178,20]
[393738437,1762957854923,-500.0,0.00039178,20]
[393738438,1762957854934,-500.0,0.00039178,20]
[393738439,1762957854944,-378.9405884,0.00039178,2]
[393738440,1762957854954,-245.38642522,0.00039178,20]
[393738441,1762957854964,-500.0,0.00039178,20]
[393738442,1762957854974,-500.0,0.00039178,20]
[393738443,1762957854983,-500.0,0.00039178,20]
[393738444,1762957854993,-500.0,0.00039178,20]
[393738445,1762957855003,-500.0,0.00039178,20]
[393738446,1762957855013,-500.0,0.00039178,20]
[393738447,1762957855022,-500.0,0.00039178,20]
[393738448,1762957855032,-500.0,0.00039178,20]
[393738449,1762957855042,-247.66170784,0.00039178,20]
[393738450,1762957855052,-500.0,0.00039178,20]
[393738451,1762957855061,-275.55047026,0.00039178,20]
[393738452,1762957855072,-500.0,0.00039178,20]
[393738453,1762957855082,-500.0,0.00039178,20]
[393738454,1762957855091,-500.0,0.00039178,20]
[393738455,1762957855101,-500.0,0.00039178,20]
[393738456,1762957855112,-500.0,0.00039178,20]
[393738457,1762957855122,-500.0,0.00039178,20]
[393738458,1762957855131,-500.0,0.00039178,20]
[393738459,1762957855143,-500.0,0.00039178,20]
[393738460,1762957855154,-500.0,0.00039178,20]
[393738461,1762957855163,-342.97822757,0.00039178,20]
[393738462,1762957855172,-500.0,0.00039178,20]
[393738463,1762957855181,-500.0,0.00039178,20]
[393738464,1762957855191,-500.0,0.00039178,20]
[393738465,1762957855200,-396.12489678,0.00039178,20]
[393738466,1762957855213,-500.0,0.00039178,20]
[393738467,1762957855223,-500.0,0.00039178,20]
[393738468,1762957855232,-505.82963849,0.00039178,20]
[393738469,1762957855242,-500.0,0.00039178,20]
[393738470,1762957855253,-316.70291232,0.00039178,20]
[393738471,1762957855262,-500.0,0.00039178,20]
[393738472,1762957855272,-500.0,0.00039178,20]
[393738473,1762957855282,-500.0,0.00039178,20]
[393738474,1762957855291,-500.0,0.00039178,20]
[393738475,1762957855300,-604.658152,0.00039178,20]
[393738476,1762957855310,-530.07558544,0.00039178,20]
[393738477,1762957855319,-160.15009018,0.00039178,20]
[393738478,1762957855330,-158027.10412487,0.0003918,30]
[393738479,1762957855341,-2281.23837103,0.00039199,2]
[393738480,1762957855351,-4000.0,0.000392,14]
[393738481,1762957855361,-500.0,0.00039201,20]
[393738482,1762957855370,-343.6702126,0.00039201,20]
[393738483,1762957855380,-622.30222,0.00039288,30]
[393738484,1762957855389,-258.28,0.00039296,30]
[393738485,1762957855399,-5000.0,0.000393,14]
[393738486,1762957855409,-162.66026467,0.00039302,20]
[393738487,1762957855419,-156.53410877,0.00039304,15]
[393738488,1762957855429,-168.0,0.0003933,2]
[393738489,1762957855438,-310.0,0.00039335,14]
[393738490,1762957855448,-168.0,0.00039392,2]
[393738491,1762957855458,-1000.0,0.000394,14]
[393738492,1762957855467,-2281.23837103,0.00039408,2]
[393738493,1762957855477,-168.0,0.0003946,7]
[393738494,1762957855487,-500.0,0.00039472,10]
[393738495,1762957855496,-706.0,0.00039472,10]
[393738496,1762957855506,-150.0,0.00039472,10]
[393738497,1762957855516,-500.0,0.00039487,120]
[393738498,1762957855525,-622.30222,0.00039488,30]
[393738499,1762957855536,-310.0,0.00039491,14]
[393738500,1762957855546,-1000.0,0.000395,14]
[393738501,1762957855555,-500.0,0.0003956,30]
[393738502,1762957855564,-258.29,0.0003957,30]
[393738503,1762957855575,-150.0,0.00039586,7]
[393738504,1762957855584,-150.0,0.00039586,7]
[393738505,1762957855594,-150.0,0.00039586,7]
[393738506,1762957855603,-1000.0,0.000396,14]
[393738507,1762957855612,-500.0,0.00039609,10]
[393738508,1762957855622,-706.0,0.00039609,10]
[393738509,1762957855631,-199.0,0.00039615,8]
[393738510,1762957855640,-2281.23837103,0.00039617,2]
[393738511,1762957855650,-500.0,0.00039632,120]
[393738512,1762957855660,-310.0,0.00039648,14]
[393738513,1762957855669,-622.30222,0.00039688,30]
[393738514,1762957855679,-1000.0,0.000397,14]
[393738515,1762957855688,-168.0,0.00039729,2]
[393738516,1762957855697,-450.0,0.00039735,7]
[393738517,1762957855707,-375.0,0.00039735,7]
[393738518,1762957855716,-500.0,0.00039746,10]
[393738519,1762957855725,-706.0,0.00039746,10]
[393738520,1762957855734,-156.53410877,0.00039774,15]
[393738521,1762957855744,-1000.0,0.000398,14]
[393738522,1762957855753,-330.0,0.00039805,14]
[393738523,1762957855763,-152.0,0.00039814,3]
[393738524,1762957855772,-2281.23837103,0.00039827,2]
[393738525,1762957855782,-168.0,0.00039847,7]
[393738526,1762957855791,-375.0,0.00039872,7]
[393738527,1762957855800,-350.0,0.00039883,10]
[393738528,1762957855809,-706.0,0.00039883,10]
[393738529,1762957855818,-622.30222,0.00039888,30]
[393738530,1762957855829,-500.0,0.00039998,20]
[393738531,1762957855838,-500.0,0.00039998,20]
[393738532,1762957855848,-500.0,0.00039998,20]
[393738533,1762957855858,-278.59524416,0.00039998,20]
[393738534,1762957855867,-500.0,0.00039998,20]
[393738535,1762957855877,-500.0,0.00039998,20]
[393738536,1762957855886,-500.0,0.00039998,20]
[393738537,1762957855895,-500.0,0.00039998,20]
[393738538,1762957855905,-500.0,0.00039998,20]
[393738539,1762957855914,-500.0,0.00039998,20]
[393738540,1762957855923,-500.0,0.00039998,20]
[393738541,1762957855932,-500.0,0.00039998,20]
[393738542,1762957855942,-500.0,0.00039998,20]
[393738543,1762957855951,-500.0,0.00039998,20]
[393738544,1762957855963,-500.0,0.00039998,20]
[393738545,1762957855972,-500.0,0.00039998,20]
[393738546,1762957855981,-500.0,0.00039998,20]
[393738547,1762957855990,-500.0,0.00039998,20]
[393738548,1762957856000,-500.0,0.00039998,20]
[393738549,1762957856009,-500.0,0.00039998,20]
[393738550,1762957856019,-500.0,0.00039998,20]
[393738551,1762957856028,-500.0,0.00039998,120]
[393738552,1762957856039,-500.0,0.00039998,120]
[393738553,1762957856048,-500.0,0.00039998,120]
[393738554,1762957856058,-500.0,0.00039998,120]
[393738555,1762957856067,-500.0,0.00039998,120]
[393738556,1762957856078,-500.0,0.00039998,120]
[393738557,1762957856087,-500.0,0.00039998,120]
[393738558,1762957856097,-500.0,0.00039998,120]
[393738559,1762957856106,-250.2,0.00039998,120]
[393738560,1762957856116,-500.0,0.00039998,20]
[393738561,1762957856126,-500.0,0.00039998,20]
[393738562,1762957856135,-500.0,0.00039998,2]
[393738563,1762957856145,-500.0,0.00039998,20]
[393738564,1762957856155,-999.0,0.00039999,120]
[393738565,1762957856164,-477.12749073,0.0004,30]
[393738566,1762957856174,-430.16088771,0.0004,30]
[393738567,1762957856183,-441.45535801,0.0004,120]
[393738568,1762957856192,-200.0,0.0004,120]
[393738569,1762957856202,-773.62720503,0.0004,30]
[393738570,1762957856213,-282.32527822,0.0004,120]
[393738571,1762957856224,-1068.37122328,0.0004,120]
[393738572,1762957856234,-205.48609223,0.0004,30]
[393738573,1762957856244,-955.54341696,0.0004,120]
[393738574,1762957856254,-521.95158757,0.0004,120]
[393738575,1762957856263,-998.92030345,0.0004,120]
[393738576,1762957856273,-379.71116199,0.0004,30]
[393738577,1762957856282,-311.48768952,0.0004,100]
[393738578,1762957856293,-265.60815746,0.0004,30]
[393738579,1762957856303,-1023.81774842,0.0004,30]
[393738580,1762957856313,-177.74880997,0.0004,120]
[393738581,1762957856323,-515.0,0.0004,30]
[393738582,1762957856332,-221.33525989,0.0004,120]
[393738583,1762957856342,-706.0,0.0004002,10]
[393738584,1762957856352,-168.0,0.00040033,2]
[393738585,1762957856361,-2281.23837103,0.00040036,15]
[393738586,1762957856370,-622.30222,0.00040088,30]
[393738587,1762957856380,-150.04,0.00040111,120]
[393738588,1762957856389,-150.04,0.00040111,120]
[393738589,1762957856398,-150.04,0.00040111,120]
[393738590,1762957856408,-150.04,0.00040111,120]
[393738591,1762957856417,-150.04,0.00040111,120]
[393738592,1762957856426,-150.04,0.00040111,120]
[393738593,1762957856436,-150.04,0.00040111,120]
[393738594,1762957856446,-150.04,0.00040111,120]
[393738595,1762957856456,-150.04,0.00040111,120]
[393738596,1762957856465,-150.04,0.00040111,120]
[393738597,1762957856475,-1098.05342992,0.00040134,30]
[393738598,1762957856484,-500.0,0.00040134,20]
[393738599,1762957856493,-500.0,0.00040134,20]